[Event "DLM Youth 2024"]
[Site "Tuebingen"]
[Date "2024.10.04"]
[Round "3"]
[White "Mueller, Maximilian"]
[Black "Mader, Fabian"]
[Result "0-1"]
[ECO "B30"]
[WhiteElo "2030"]
[BlackElo "1963"]
[Annotator "RC"]
[PlyCount "44"]
[EventDate "2024.10.03"]
[EventType "team-swiss"]
[EventRounds "7"]
[EventCountry "GER"]
[SourceTitle "playchess.com"]
[Source "ChessBase"]
[SourceQuality "1"]
[TimeControl "40/5400+30:1800+30"]

1. e4 {[%emt 0:00:02]} c5 {[%emt 0:00:06]} 2. Nf3 {[%emt 0:00:04]} Nc6 {[%emt 0:00:07]} 3. Bb5 {[%emt 0:00:03]} Nf6 {[%emt 0:00:35]} 4. Bxc6 {[%emt 0:00:06]} dxc6 {[%emt 0:00:22]} 5. d3 {[%emt 0:00:08]} Qc7 {[%emt 0:00:30]} 6. Be3 {[%emt 0:01:41]} e5 {[%emt 0:01:08]} 7. h3 {[%emt 0:00:07]} Be7 {[%emt 0:01:11]} 8. Nc3 {[%emt 0:00:17]} O-O {[%emt 0:01:19]} 9. O-O {[%emt 0:01:33]} h6 {[%emt 0:01:59]} 10. Nd2 {[%emt 0:07:00]} Be6 {[%emt 0:08:39]} 11. f4 {[%emt 0:13:44]} Rad8 {[%emt 0:12:08]} 12. Qe2 {[%emt 0:02:21]} exf4 {[%emt 0:04:30]} 13. Bxf4 {[%emt 0:00:11]} Qb6 {[%emt 0:00:36]} 14. b3 {[%emt 0:03:43]} c4+ {[%emt 0:01:12]} 15. Kh1 {[%emt 0:00:06]} cxd3 {[%emt 0:01:05]} 16. cxd3 {[%emt 0:00:26]} Qd4 {[%emt 0:02:13]} 17. Rac1 {[%emt 0:03:07]} Qxd3 {[%emt 0:01:52]} 18. Qf2 {[%emt 0:02:49]} Nh5 {[%emt 0:09:03]} 19. Be3 {[%emt 0:00:05]} Ba3 {[%emt 0:05:19]} 20. Ndb1 {[%emt 0:02:16]} Bxc1 {[%emt 0:01:51]} 21. Rxc1 {[%emt 0:00:04]} f5 {[%emt 0:05:27]} 22. Rd1 {[%emt 0:00:05]} Qxd1+ {[%emt 0:03:16]} 0-1

[Event "DLM Youth 2024"]
[Site "Tuebingen"]
[Date "2024.10.04"]
[Round "3"]
[White "Mueller, Riyanna"]
[Black "Mukazhanov, Mansur"]
[Result "1-0"]
[ECO "B22"]
[WhiteElo "2014"]
[BlackElo "1894"]
[Annotator "RC"]
[PlyCount "75"]
[EventDate "2024.10.03"]
[EventType "team-swiss"]
[EventRounds "7"]
[EventCountry "GER"]
[SourceTitle "playchess.com"]
[Source "ChessBase"]
[SourceQuality "1"]
[TimeControl "40/5400+30:1800+30"]

1. e4 {[%emt 0:00:05]} c5 {[%emt 0:00:19]} 2. c3 {[%emt 0:00:09]} g6 {[%emt 0:00:16]} 3. d4 {[%emt 0:00:21]} cxd4 {[%emt 0:00:13]} 4. cxd4 {[%emt 0:00:09]} Bg7 {[%emt 0:00:17]} 5. Nc3 {[%emt 0:00:49]} Nf6 {[%emt 0:01:20]} 6. e5 {[%emt 0:01:57]} Ng8 {[%emt 0:00:10]} 7. Nf3 {[%emt 0:02:34]} d5 {[%emt 0:00:09]} 8. h3 {[%emt 0:01:37]} Nc6 {[%emt 0:00:21]} 9. Qb3 {[%emt 0:09:08]} f6 {[%emt 0:03:33]} 10. Qxd5 {[%emt 0:00:41]} fxe5 {[%emt 0:00:43]} 11. dxe5 {[%emt 0:03:04]} Bf5 {[%emt 0:10:43]} 12. Qxd8+ {[%emt 0:06:21]} Rxd8 {[%emt 0:00:16]} 13. Bb5 {[%emt 0:00:09]} Bd7 {[%emt 0:01:34]} 14. Bf4 {[%emt 0:02:03]} Nb4 {[%emt 0:02:15]} 15. O-O {[%emt 0:02:02]} Bxb5 {[%emt 0:01:21]} 16. Nxb5 {[%emt 0:00:09]} Nd3 {[%emt 0:00:10]} 17. Bg3 {[%emt 0:00:26]} a6 {[%emt 0:00:59]} 18. Nbd4 {[%emt 0:11:28]} Nxe5 {[%emt 0:13:56]} 19. Nxe5 {[%emt 0:00:19]} Rxd4 {[%emt 0:00:23]} 20. Rac1 {[%emt 0:00:12]} Nh6 {[%emt 0:02:34]} 21. Rc7 {[%emt 0:03:37]} O-O {[%emt 0:06:11]} 22. Rxb7 {[%emt 0:01:22]} Nf5 {[%emt 0:00:13]} 23. Nf3 {[%emt 0:04:06]} Ra4 {[%emt 0:07:41]} 24. a3 {[%emt 0:02:34]} Rc4 {[%emt 0:01:17]} 25. Re1 {[%emt 0:06:35]} Rc2 {[%emt 0:01:05]} 26. Be5 {[%emt 0:01:20]} Bxe5 {[%emt 0:13:52]} 27. Rxe5 {[%emt 0:01:02]} Rd8 {[%emt 0:01:58]} 28. g4 {[%emt 0:01:56]} Nd6 {[%emt 0:00:13]} 29. Ra7 {[%emt 0:02:59]} Nc8 {[%emt 0:06:48]} 30. Rxa6 {[%emt 0:00:45]} Rxb2 {[%emt 0:00:10]} 31. Ra8 {[%emt 0:01:01]} Kf7 {[%emt 0:01:47]} 32. Kg2 {[%emt 0:01:57]} Rc2 {[%emt 0:02:55]} 33. Re3 {[%emt 0:07:43]} Rd1 {[%emt 0:01:31]} 34. a4 {[%emt 0:04:15]} Ra1 {[%emt 0:00:27]} 35. a5 {[%emt 0:06:41]} Raa2 {[%emt 0:02:15]} 36. Kg3 {[%emt 0:01:17]} Rc7 {[%emt 0:00:37]} 37. Ng5+ {[%emt 0:00:37]} Kg8 {[%emt 0:01:49]} 38. Rd3 {[%emt 0:00:28]} 1-0

[Event "DLM Youth 2024"]
[Site "Tuebingen"]
[Date "2024.10.04"]
[Round "3"]
[White "Albrecht, Neil"]
[Black "Hubert, Charlotte"]
[Result "1-0"]
[ECO "B92"]
[WhiteElo "1997"]
[BlackElo "1878"]
[Annotator "RC"]
[PlyCount "73"]
[EventDate "2024.10.03"]
[EventType "team-swiss"]
[EventRounds "7"]
[EventCountry "GER"]
[SourceTitle "playchess.com"]
[Source "ChessBase"]
[SourceQuality "1"]
[TimeControl "40/5400+30:1800+30"]

1. e4 {[%emt 0:00:01]} c5 {[%emt 0:00:08]} 2. Nf3 {[%emt 0:00:04]} d6 {[%emt 0:00:16]} 3. d4 {[%emt 0:00:58]} cxd4 {[%emt 0:00:08]} 4. Nxd4 {[%emt 0:00:06]} Nf6 {[%emt 0:00:10]} 5. Nc3 {[%emt 0:00:12]} a6 {[%emt 0:00:07]} 6. Be2 {[%emt 0:00:17]} e5 {[%emt 0:00:11]} 7. Nb3 {[%emt 0:00:06]} Be6 {[%emt 0:00:31]} 8. Be3 {[%emt 0:00:53]} Be7 {[%emt 0:00:07]} 9. Qd3 {[%emt 0:00:47]} O-O {[%emt 0:04:32]} 10. Nd5 {[%emt 0:00:24]} Bxd5 {[%emt 0:06:13]} 11. exd5 {[%emt 0:00:06]} Nbd7 {[%emt 0:00:20]} 12. g4 {[%emt 0:00:29]} Rc8 {[%emt 0:09:55]} 13. c4 {[%emt 0:04:08]} a5 {[%emt 0:01:07]} 14. g5 {[%emt 0:06:37]} Ne8 {[%emt 0:00:09]} 15. h4 {[%emt 0:00:14]} f5 {[%emt 0:05:14]} 16. a4 {[%emt 0:03:56]} Nc5 {[%emt 0:13:26]} 17. Qc3 {[%emt 0:09:59]} b6 {[%emt 0:06:42]} 18. Bxc5 {[%emt 0:04:46]} Rxc5 {[%emt 0:03:10]} 19. Nxc5 {[%emt 0:00:36]} bxc5 {[%emt 0:00:05]} 20. Ra3 {[%emt 0:00:50]} Qa8 {[%emt 0:03:46]} 21. Rb3 {[%emt 0:01:42]} Bd8 {[%emt 0:11:43]} 22. f4 {[%emt 0:05:38]} e4 {[%emt 0:07:08]} 23. Rb5 {[%emt 0:02:30]} Nc7 {[%emt 0:04:11]} 24. Rxa5 {[%emt 0:01:33]} Na6 {[%emt 0:00:32]} 25. Rb5 {[%emt 0:05:02]} Nc7 {[%emt 0:00:05]} 26. Kf2 {[%emt 0:06:59]} Nxb5 {[%emt 0:00:31]} 27. axb5 {[%emt 0:00:25]} Rf7 {[%emt 0:04:02]} 28. h5 {[%emt 0:02:09]} Qa5 {[%emt 0:08:10]} 29. g6 {[%emt 0:02:59]} Ra7 {[%emt 0:01:57]} 30. Qh3 {[%emt 0:01:20]} Qd2 {[%emt 0:06:30]} 31. Qxf5 {[%emt 0:01:10]} Qd4+ {[%emt 0:00:16]} 32. Kg2 {[%emt 0:00:09]} Qf6 {[%emt 0:00:31]} 33. Qe6+ {[%emt 0:07:44]} Qxe6 {[%emt 0:00:36]} 34. dxe6 {[%emt 0:00:04]} h6 {[%emt 0:00:14]} 35. Rd1 {[%emt 0:02:23]} Be7 {[%emt 0:01:15]} 36. b6 {[%emt 0:01:20]} Ra2 {[%emt 0:00:47]} 37. Ra1 {[%emt 0:01:47]} 1-0

[Event "DLM Youth 2024"]
[Site "Tuebingen"]
[Date "2024.10.04"]
[Round "3"]
[White "Abou Wally, Adrian"]
[Black "Nechitaylo, Nikita"]
[Result "0-1"]
[ECO "B22"]
[WhiteElo "1991"]
[BlackElo "2252"]
[Annotator "RC"]
[PlyCount "58"]
[EventDate "2024.10.03"]
[EventType "team-swiss"]
[EventRounds "7"]
[EventCountry "GER"]
[SourceTitle "playchess.com"]
[Source "ChessBase"]
[SourceQuality "1"]
[TimeControl "40/5400+30:1800+30"]

1. e4 {[%emt 0:00:01]} c5 {[%emt 0:00:04]} 2. Nf3 {[%emt 0:00:04]} e6 {[%emt 0:00:03]} 3. c3 {[%emt 0:01:00]} d5 {[%emt 0:07:59]} 4. exd5 {[%emt 0:01:20]} exd5 {[%emt 0:00:05]} 5. d4 {[%emt 0:00:41]} Nf6 {[%emt 0:01:56]} 6. Bd3 {[%emt 0:11:41]} c4 {[%emt 0:06:46]} 7. Be2 {[%emt 0:03:04]} Bd6 {[%emt 0:24:00]} 8. O-O {[%emt 0:02:16]} O-O {[%emt 0:00:13]} 9. Re1 {[%emt 0:01:08]} Qc7 {[%emt 0:07:50]} 10. Bf1 {[%emt 0:08:14]} Bg4 {[%emt 0:05:08]} 11. g3 {[%emt 0:00:52]} Nbd7 {[%emt 0:07:18]} 12. Bg2 {[%emt 0:01:15]} b5 {[%emt 0:05:58]} 13. Qc2 {[%emt 0:16:15]} Rfe8 {[%emt 0:04:33]} 14. Rxe8+ {[%emt 0:07:37]} Rxe8 {[%emt 0:00:01]} 15. Be3 {[%emt 0:00:18]} Bh5 {[%emt 0:02:13]} 16. Nbd2 {[%emt 0:07:10]} Bg6 {[%emt 0:01:03]} 17. Qc1 {[%emt 0:00:08]} Ng4 {[%emt 0:02:00]} 18. Nf1 {[%emt 0:00:07]} Bd3 {[%emt 0:02:16]} 19. Qd2 {[%emt 0:07:59]} Ndf6 {[%emt 0:03:30]} 20. Ng5 {[%emt 0:05:07]} h6 {[%emt 0:06:14]} 21. Nh3 {[%emt 0:00:06]} g5 {[%emt 0:01:52]} 22. Re1 {[%emt 0:06:33]} Re6 {[%emt 0:05:48]} 23. f3 {[%emt 0:02:21]} Bxf1 {[%emt 0:00:03]} 24. Bxf1 {[%emt 0:02:09]} Nxh2 {[%emt 0:00:02]} 25. Kxh2 {[%emt 0:09:24]} Bxg3+ {[%emt 0:00:02]} 26. Kg2 {[%emt 0:00:10]} Bxe1 {[%emt 0:00:04]} 27. Qxe1 {[%emt 0:00:05]} Qe7 {[%emt 0:00:13]} 28. Kf2 {[%emt 0:00:29]} g4 {[%emt 0:01:12]} 29. Nf4 {[%emt 0:03:59]} g3+ {[%emt 0:00:02]} 0-1

[Event "DLM Youth 2024"]
[Site "Tuebingen"]
[Date "2024.10.04"]
[Round "3"]
[White "Buchholz, Maja Patricia"]
[Black "Braeutigam, Katerina"]
[Result "1-0"]
[ECO "A20"]
[WhiteElo "1988"]
[BlackElo "2099"]
[Annotator "NA RC"]
[PlyCount "147"]
[EventDate "2024.10.03"]
[EventType "team-swiss"]
[EventRounds "7"]
[EventCountry "GER"]
[SourceTitle "playchess.com"]
[Source "ChessBase"]
[SourceQuality "1"]
[TimeControl "40/5400+30:1800+30"]

1. c4 {[%emt 0:00:02]} e5 {[%emt 0:00:05]} 2. g3 {[%emt 0:00:05]} Nf6 {[%emt 0:00:07]} 3. Bg2 {[%emt 0:00:06]} c6 {[%emt 0:00:10]} 4. Nf3 {[%emt 0:01:11]} e4 {[%emt 0:00:17]} 5. Nd4 {[%emt 0:00:19]} Qb6 {[%emt 0:00:57]} 6. Nb3 {[%emt 0:00:51] A20: English Opening: 1...e5.} a5 {[%emt 0:01:16]} 7. d3 {[%emt 0:08:51]} a4 {[%emt 0:22:11]} 8. N3d2 {[%emt 0:01:21]} Bc5 {[%emt 0:11:55]} 9. O-O {[%emt 0:02:22]} e3 {[%emt 0:14:37]} 10. fxe3 {[%emt 0:05:32]} Bxe3+ {[%emt 0:01:51]} 11. Kh1 {[%emt 0:00:08]} Ng4 {[%emt 0:07:22]} 12. Ne4 {[%emt 0:05:36]} O-O {[%emt 0:11:28]} 13. Nbc3 {[%emt 0:39:13]} d5 {[%emt 0:13:44]} 14. cxd5 {[%emt 0:01:29]} f5 {[%emt 0:01:27]} 15. h3 {[%emt 0:01:58]} Bxc1 {[%emt 0:04:50]} 16. Qxc1 {[%emt 0:08:21]} Ne3 {[%emt 0:00:40]} 17. Rf3 {[%emt 0:00:30]} Nxd5 {[%emt 0:04:32]} 18. Nd6 {[%emt 0:06:46]} Be6 {[%emt 0:01:08]} 19. e4 {[%emt 0:00:33]} Nxc3 {[%emt 0:00:46]} 20. bxc3 {[%emt 0:02:12]} fxe4 {[%emt 0:00:27]} 21. Rxf8+ {[%emt 0:00:40]} Kxf8 {[%emt 0:00:02]} 22. Qf4+ {[%emt 0:00:39]} Ke7 {[%emt 0:01:00]} 23. Qxe4 {[%emt 0:03:02]} Kxd6 {[%emt 0:00:33]} 24. Re1 {[%emt 0:00:06]} Nd7 {[%emt 0:00:29]} 25. Qxe6+ {[%emt 0:00:51]} Kc7 {[%emt 0:00:05]} 26. Qg4 {[%emt 0:02:28]} Qf2 {[%emt 0:00:51]} 27. Re2 {[%emt 0:00:45]} Qf6 {[%emt 0:00:25]} 28. d4 {[%emt 0:00:46]} Rd8 {[%emt 0:00:40]} 29. Qh5 {[%emt 0:01:09]} h6 {[%emt 0:00:32]} 30. Qa5+ {[%emt 0:00:29]} Kc8 {[%emt 0:00:25]} 31. Kh2 {[%emt 0:01:24]} Qd6 {[%emt 0:00:35]} 32. Qxa4 {[%emt 0:02:45]} Nb6 {[%emt 0:00:25]} 33. Qb3 {[%emt 0:00:31]} Qc7 {[%emt 0:00:28]} 34. Rb2 {[%emt 0:00:29]} Nd5 {[%emt 0:00:24]} 35. c4 {[%emt 0:00:13]} Nf6 {[%emt 0:00:34]} 36. d5 {[%emt 0:00:19]} c5 {[%emt 0:00:32]} 37. Qa4 {[%emt 0:02:18]} h5 {[%emt 0:00:37]} 38. d6 {[%emt 0:00:57]} Rxd6 {[%emt 0:00:14]} 39. Rxb7 {[%emt 0:00:20]} Qxb7 {[%emt 0:00:30]} 40. Bxb7+ {[%emt 0:00:04]} Kxb7 {[%emt 0:00:13]} 41. Qb5+ {[%emt 0:31:44]} Rb6 {[%emt 0:06:26]} 42. Qxc5 {[%emt 0:00:00]} g6 $18 {[%emt 0:04:35]} 43. Qe7+ {[%emt 0:00:00]} Kc8 {[%emt 0:01:20]} 44. a4 {[%emt 0:00:00]} Nd7 {[%emt 0:03:04]} 45. a5 {[%emt 0:00:00]} Rc6 {[%emt 0:02:24]} 46. Qa3 {[%emt 0:00:00]} Kb7 {[%emt 0:13:13]} 47. Qa4 {[%emt 0:00:00]} Nb8 {[%emt 0:01:30]} 48. Qb5+ {[%emt 0:00:00]} Ka7 {[%emt 0:00:55]} 49. Kg2 {[%emt 0:00:00]} Ra6 {[%emt 0:00:55]} 50. Qc5+ {[%emt 0:00:00]} Kb7 {[%emt 0:00:30]} 51. Qe7+ {[%emt 0:00:00]} Ka8 {[%emt 0:01:00]} 52. Qe4+ {[%emt 0:00:00]} Ka7 {[%emt 0:00:27]} 53. Qd4+ {[%emt 0:00:00]} Kb7 {[%emt 0:00:39]} 54. Qd5+ {[%emt 0:00:00]} Ka7 {[%emt 0:00:27]} 55. Kf2 {[%emt 0:00:00]} Rf6+ {[%emt 0:00:36]} 56. Ke3 {[%emt 0:00:03]} Rf5 {[%emt 0:00:32]} 57. Qd4+ {[%emt 0:00:23]} Ka8 {[%emt 0:00:20]} 58. Qe4+ {[%emt 0:00:26]} Ka7 {[%emt 0:00:05]} 59. Qe7+ {[%emt 0:00:32]} Ka8 {[%emt 0:00:16]} 60. Qd8 {[%emt 0:00:42]} Rc5 {[%emt 0:00:49]} 61. Kd4 {[%emt 0:03:13]} Rc6 {[%emt 0:00:44]} 62. Kd5 {[%emt 0:00:33]} Ra6 {[%emt 0:00:32]} 63. Kc5 {[%emt 0:00:56]} Kb7 {[%emt 0:00:38]} 64. Qd5+ {[%emt 0:00:51]} Rc6+ {[%emt 0:00:36]} 65. Kb5 {[%emt 0:00:10]} Kc7 {[%emt 0:00:22]} 66. Qe5+ {[%emt 0:00:34]} Kb7 {[%emt 0:00:31]} 67. Qxb8+ {[%emt 0:00:12]} Kxb8 {[%emt 0:00:18]} 68. Kxc6 {[%emt 0:00:04]} g5 {[%emt 0:00:29]} 69. Kd7 {[%emt 0:00:26]} g4 {[%emt 0:00:24]} 70. hxg4 {[%emt 0:00:17]} hxg4 {[%emt 0:00:05]} 71. c5 {[%emt 0:00:31]} Ka8 {[%emt 0:00:25]} 72. c6 {[%emt 0:00:14]} Kb8 {[%emt 0:00:05]} 73. c7+ {[%emt 0:00:07]} Ka7 {[%emt 0:00:04]} 74. Kd8 {[%emt 0:00:10]} 1-0

[Event "DLM Youth 2024"]
[Site "Tuebingen"]
[Date "2024.10.04"]
[Round "3"]
[White "Goldmann, David"]
[Black "Nunez Gregoire, Daniel"]
[Result "0-1"]
[ECO "C48"]
[WhiteElo "1969"]
[BlackElo "2154"]
[Annotator "RC"]
[PlyCount "54"]
[EventDate "2024.10.03"]
[EventType "team-swiss"]
[EventRounds "7"]
[EventCountry "GER"]
[SourceTitle "playchess.com"]
[Source "ChessBase"]
[SourceQuality "1"]
[TimeControl "40/5400+30:1800+30"]

1. e4 {[%emt 0:00:05]} e5 {[%emt 0:00:01]} 2. Nf3 {[%emt 0:00:09]} Nc6 {[%emt 0:00:01]} 3. Nc3 {[%emt 0:00:10]} Nf6 {[%emt 0:00:04]} 4. Bb5 {[%emt 0:00:18]} Nd4 {[%emt 0:00:01]} 5. Ba4 {[%emt 0:01:17]} Nxf3+ {[%emt 0:00:44]} 6. Qxf3 {[%emt 0:00:02]} c6 {[%emt 0:00:27]} 7. O-O {[%emt 0:00:06]} a5 {[%emt 0:01:37]} 8. Bb3 {[%emt 0:02:21]} b5 {[%emt 0:01:04]} 9. a3 {[%emt 0:00:11]} d6 {[%emt 0:00:51]} 10. h3 {[%emt 0:02:27]} Be6 {[%emt 0:03:16]} 11. Bxe6 {[%emt 0:01:12]} fxe6 {[%emt 0:00:05]} 12. Rd1 {[%emt 0:00:02]} Be7 {[%emt 0:01:32]} 13. d4 {[%emt 0:02:01]} exd4 {[%emt 0:01:17]} 14. Rxd4 {[%emt 0:02:41]} Qc7 {[%emt 0:01:01]} 15. Be3 {[%emt 0:08:03]} O-O {[%emt 0:00:32]} 16. Rad1 {[%emt 0:00:53]} d5 {[%emt 0:01:23]} 17. exd5 {[%emt 0:05:09]} exd5 {[%emt 0:00:25]} 18. Rf4 {[%emt 0:01:57]} b4 {[%emt 0:05:04]} 19. axb4 {[%emt 0:00:52]} axb4 {[%emt 0:00:18]} 20. Ne2 {[%emt 0:00:39]} Bd6 {[%emt 0:04:51]} 21. Rf5 {[%emt 0:00:07]} Qd7 {[%emt 0:03:01]} 22. Nd4 {[%emt 0:05:58]} Rae8 {[%emt 0:05:09]} 23. Bg5 {[%emt 0:01:34]} Ne4 {[%emt 0:00:56]} 24. Qg4 {[%emt 0:00:12]} Rxf5 {[%emt 0:02:14]} 25. Nxf5 {[%emt 0:00:23]} Kh8 {[%emt 0:01:18]} 26. Be3 {[%emt 0:06:51]} Be5 {[%emt 0:01:58]} 27. Qxe4 {[%emt 0:01:18]} Bh2+ {[%emt 0:00:59]} 0-1

[Event "DLM Youth 2024"]
[Site "Tuebingen"]
[Date "2024.10.04"]
[Round "3"]
[White "Groeschel, Karoline"]
[Black "Sheng, Ming"]
[Result "1-0"]
[ECO "B12"]
[WhiteElo "1968"]
[BlackElo "2007"]
[Annotator "RC"]
[PlyCount "97"]
[EventDate "2024.10.03"]
[EventType "team-swiss"]
[EventRounds "7"]
[EventCountry "GER"]
[SourceTitle "playchess.com"]
[Source "ChessBase"]
[SourceQuality "1"]
[TimeControl "40/5400+30:1800+30"]

1. e4 {[%emt 0:00:03]} c6 {[%emt 0:00:03]} 2. d4 {[%emt 0:00:06]} d5 {[%emt 0:00:04]} 3. e5 {[%emt 0:00:04]} Bf5 {[%emt 0:00:03]} 4. h4 {[%emt 0:00:04]} h5 {[%emt 0:00:05]} 5. Bd3 {[%emt 0:00:06]} Bxd3 {[%emt 0:00:05]} 6. Qxd3 {[%emt 0:00:05]} e6 {[%emt 0:00:06]} 7. Nf3 {[%emt 0:00:05]} Qa5+ {[%emt 0:00:13]} 8. Nbd2 {[%emt 0:00:06]} Qa6 {[%emt 0:00:15]} 9. c4 {[%emt 0:00:17]} Bb4 {[%emt 0:00:34]} 10. O-O {[%emt 0:00:44]} Ne7 {[%emt 0:00:24]} 11. b3 {[%emt 0:00:13]} c5 {[%emt 0:01:06]} 12. Rd1 {[%emt 0:07:13]} Bxd2 {[%emt 0:05:11]} 13. Bxd2 {[%emt 0:03:29]} dxc4 {[%emt 0:13:18]} 14. bxc4 {[%emt 0:01:27]} Nbc6 {[%emt 0:05:00]} 15. Bg5 {[%emt 0:18:55]} cxd4 {[%emt 0:04:33]} 16. Nxd4 {[%emt 0:07:05]} O-O {[%emt 0:10:21]} 17. Nxc6 {[%emt 0:12:02]} Nxc6 {[%emt 0:01:32]} 18. Qe2 {[%emt 0:00:13]} Qa5 {[%emt 0:03:06]} 19. Re1 {[%emt 0:01:46]} Rfc8 {[%emt 0:14:50]} 20. Rab1 {[%emt 0:04:43]} b6 {[%emt 0:01:28]} 21. Rbd1 {[%emt 0:02:35]} Nxe5 {[%emt 0:13:35]} 22. Bd2 {[%emt 0:01:14]} Qxa2 {[%emt 0:00:26]} 23. Qxe5 {[%emt 0:00:10]} Rc5 {[%emt 0:01:00]} 24. Qe4 {[%emt 0:07:32]} Rac8 {[%emt 0:00:42]} 25. Be3 {[%emt 0:05:14]} Rxc4 {[%emt 0:00:36]} 26. Qf3 {[%emt 0:00:12]} Qa4 {[%emt 0:02:02]} 27. Ra1 {[%emt 0:01:00]} Qd7 {[%emt 0:00:07]} 28. Qxh5 {[%emt 0:00:45]} Qb7 {[%emt 0:02:21]} 29. Red1 {[%emt 0:02:41]} a6 {[%emt 0:02:58]} 30. Qg5 {[%emt 0:03:25]} f6 {[%emt 0:02:05]} 31. Qg3 {[%emt 0:00:47]} b5 {[%emt 0:00:30]} 32. Rd6 {[%emt 0:02:41]} R4c6 {[%emt 0:00:31]} 33. Rad1 {[%emt 0:00:18]} Rxd6 {[%emt 0:01:40]} 34. Qxd6 {[%emt 0:01:40]} Rc6 {[%emt 0:01:27]} 35. Qd8+ {[%emt 0:00:26]} Kh7 {[%emt 0:00:12]} 36. Rd7 {[%emt 0:00:13]} Qc8 {[%emt 0:00:11]} 37. Qe7 {[%emt 0:01:16]} Qg8 {[%emt 0:00:18]} 38. Rd8 {[%emt 0:00:13]} Qxd8 {[%emt 0:01:36]} 39. Qxd8 {[%emt 0:00:07]} b4 {[%emt 0:00:29]} 40. Qd7 {[%emt 0:00:33]} Rc3 {[%emt 0:00:24]} 41. Bd2 {[%emt 0:31:10]} Rb3 {[%emt 0:30:52]} 42. Qxe6 {[%emt 0:00:55]} Rb2 {[%emt 0:00:06]} 43. Qe4+ {[%emt 0:00:31]} f5 {[%emt 0:00:35]} 44. Qxf5+ {[%emt 0:01:08]} Kg8 {[%emt 0:00:15]} 45. Qe6+ {[%emt 0:00:12]} Kh7 {[%emt 0:00:18]} 46. Qe4+ {[%emt 0:00:10]} Kh8 {[%emt 0:00:22]} 47. Bxb4 {[%emt 0:00:11]} a5 {[%emt 0:00:15]} 48. Bc3 {[%emt 0:00:25]} Rb8 {[%emt 0:00:43]} 49. Qe7 {[%emt 0:00:26]} 1-0

[Event "DLM Youth 2024"]
[Site "Tuebingen"]
[Date "2024.10.04"]
[Round "3"]
[White "Fruth, David"]
[Black "Haug, Mara"]
[Result "1-0"]
[ECO "B35"]
[WhiteElo "1966"]
[BlackElo "1958"]
[Annotator "NA RC"]
[PlyCount "65"]
[EventDate "2024.10.03"]
[EventType "team-swiss"]
[EventRounds "7"]
[EventCountry "GER"]
[SourceTitle "playchess.com"]
[Source "ChessBase"]
[SourceQuality "1"]
[TimeControl "40/5400+30:1800+30"]

1. e4 {[%emt 0:00:01]} c5 {[%emt 0:00:06]} 2. Nf3 {[%emt 0:00:05]} Nc6 {[%emt 0:00:06]} 3. d4 {[%emt 0:00:02]} cxd4 {[%emt 0:00:10]} 4. Nxd4 {[%emt 0:00:02]} g6 {[%emt 0:00:07]} 5. Nc3 {[%emt 0:00:06]} Bg7 {[%emt 0:00:07]} 6. Be3 {[%emt 0:00:03]} Nf6 {[%emt 0:00:12]} 7. f3 {[%emt 0:00:03]} O-O {[%emt 0:00:30]} 8. Bc4 {[%emt 0:00:02]} Qb6 {[%emt 0:00:13]} 9. a3 {[%emt 0:00:50]} e6 {[%emt 0:00:14]} 10. O-O {[%emt 0:00:32]} Re8 {[%emt 0:11:40]} 11. Bb3 {[%emt 0:29:11]} Qa5 {[%emt 0:08:54]} 12. f4 {[%emt 0:04:01]} Qh5 {[%emt 0:09:35]} 13. Qxh5 {[%emt 0:06:30]} Nxh5 {[%emt 0:02:07]} 14. e5 {[%emt 0:05:38]} g5 {[%emt 0:14:55]} 15. Nxc6 {[%emt 0:06:49]} dxc6 {[%emt 0:00:00]} 16. fxg5 {[%emt 0:04:35]} Bxe5 {[%emt 0:01:37]} 17. Ne4 {[%emt 0:00:31]} Ng7 {[%emt 0:11:14]} 18. g4 {[%emt 0:00:54]} Rd8 {[%emt 0:02:49]} 19. Rad1 {[%emt 0:06:22]} Rxd1 {[%emt 0:03:16]} 20. Rxd1 {[%emt 0:00:19]} Bc7 {[%emt 0:01:06]} 21. Nf6+ {[%emt 0:00:07]} Kh8 {[%emt 0:00:14]} 22. Bd4 {[%emt 0:00:40]} e5 {[%emt 0:05:54]} 23. Bxe5 {[%emt 0:00:23]} Bb6+ {[%emt 0:00:17]} 24. Kg2 {[%emt 0:00:59]} Ne6 {[%emt 0:00:54]} 25. Nd7+ {[%emt 0:02:29]} Kg8 {[%emt 0:00:03]} 26. Bxe6 {[%emt 0:00:27]} fxe6 {[%emt 0:00:24]} 27. Nxb6 {[%emt 0:00:21]} axb6 {[%emt 0:00:04]} 28. Rd8+ {[%emt 0:00:58]} Kf7 {[%emt 0:00:02]} 29. Bf6 {[%emt 0:00:37]} b5 {[%emt 0:00:39]} 30. h4 {[%emt 0:00:12]} b6 {[%emt 0:01:13]} 31. h5 {[%emt 0:00:06]} c5 {[%emt 0:01:19]} 32. Kg3 {[%emt 0:00:15]} e5 {[%emt 0:01:46]} 33. g6+ {[%emt 0:00:30]} 1-0

[Event "DLM Youth 2024"]
[Site "Tuebingen"]
[Date "2024.10.04"]
[Round "3"]
[White "Ratushnyi, Viktor"]
[Black "Sereda, Yaroslava"]
[Result "0-1"]
[ECO "B31"]
[WhiteElo "1959"]
[BlackElo "1972"]
[Annotator "RC"]
[PlyCount "68"]
[EventDate "2024.10.03"]
[EventType "team-swiss"]
[EventRounds "7"]
[EventCountry "GER"]
[SourceTitle "playchess.com"]
[Source "ChessBase"]
[SourceQuality "1"]
[TimeControl "40/5400+30:1800+30"]

1. e4 {[%emt 0:00:00]} c5 {[%emt 0:00:07]} 2. Nf3 {[%emt 0:00:07]} Nc6 {[%emt 0:00:07]} 3. Bb5 {[%emt 0:00:05]} g6 {[%emt 0:00:11]} 4. Bxc6 {[%emt 0:00:07]} bxc6 {[%emt 0:05:46]} 5. O-O {[%emt 0:01:40]} Bg7 {[%emt 0:00:06]} 6. Re1 {[%emt 0:06:10]} Qc7 {[%emt 0:00:57]} 7. c3 {[%emt 0:00:32]} Nf6 {[%emt 0:07:53]} 8. d4 {[%emt 0:00:34]} cxd4 {[%emt 0:00:48]} 9. cxd4 {[%emt 0:00:14]} O-O {[%emt 0:17:13]} 10. Nc3 {[%emt 0:00:34]} Rb8 {[%emt 0:04:15]} 11. Qe2 {[%emt 0:12:48]} Re8 {[%emt 0:04:41]} 12. h3 {[%emt 0:03:38]} d6 {[%emt 0:07:38]} 13. e5 {[%emt 0:14:56]} Nd5 {[%emt 0:05:55]} 14. Nxd5 {[%emt 0:02:10]} cxd5 {[%emt 0:00:07]} 15. Bf4 {[%emt 0:00:10]} Bd7 {[%emt 0:16:22]} 16. b3 {[%emt 0:16:24]} Qb6 {[%emt 0:02:25]} 17. Rac1 {[%emt 0:03:09]} Rbd8 {[%emt 0:03:16]} 18. Qd2 {[%emt 0:13:57]} Bf5 {[%emt 0:03:14]} 19. Re3 {[%emt 0:06:04]} Be4 {[%emt 0:09:45]} 20. b4 {[%emt 0:10:02]} Rc8 {[%emt 0:04:41]} 21. Rxc8 {[%emt 0:02:12]} Rxc8 {[%emt 0:00:02]} 22. exd6 {[%emt 0:02:24]} exd6 {[%emt 0:00:16]} 23. Rc3 {[%emt 0:01:58]} Rc4 {[%emt 0:02:03]} 24. Rxc4 {[%emt 0:01:12]} dxc4 {[%emt 0:00:02]} 25. Qe1 {[%emt 0:01:05]} d5 {[%emt 0:00:50]} 26. Be5 {[%emt 0:00:44]} Bxe5 {[%emt 0:01:45]} 27. Nxe5 {[%emt 0:00:30]} Qxd4 {[%emt 0:00:41]} 28. Nc6 {[%emt 0:00:30]} Qb6 {[%emt 0:01:06]} 29. Ne5 {[%emt 0:00:07]} Qd4 {[%emt 0:00:31]} 30. Nc6 {[%emt 0:00:04]} Qd3 {[%emt 0:01:15]} 31. f3 {[%emt 0:01:19]} c3 {[%emt 0:01:18]} 32. fxe4 {[%emt 0:00:31]} c2 {[%emt 0:00:05]} 33. Ne7+ {[%emt 0:00:29]} Kf8 {[%emt 0:00:32]} 34. exd5 {[%emt 0:00:32]} Qd1 {[%emt 0:00:46]} 0-1